[Event "Early-Titled-Tuesday-Blitz-April-02-2024"]
[Site "Chess.com"]
[Date "2024.04.02"]
[Round "1"]
[White "zsizsi99"]
[Black "the_chess_child"]
[Result "1/2-1/2"]
[WhiteElo "2503"]
[BlackElo "2839"]
[TimeControl "180+1"]
[EndTime "8:08:16 PDT"]
[Termination "Game drawn - insufficient material"]

1. e4 {[%clk 0:02:59.7]} 1... c5 {[%clk 0:02:59.1]} 2. Nf3 {[%clk 0:03:00.2]}
2... d6 {[%clk 0:02:58.7]} 3. Bb5+ {[%clk 0:03:00.6]} 3... Bd7 {[%clk
0:02:57.1]} 4. Bxd7+ {[%clk 0:03:00]} 4... Qxd7 {[%clk 0:02:58]} 5. c4 {[%clk
0:03:00.2]} 5... e5 {[%clk 0:02:58]} 6. Nc3 {[%clk 0:02:59.5]} 6... Nc6 {[%clk
0:02:56.9]} 7. O-O {[%clk 0:03:00]} 7... Be7 {[%clk 0:02:56.5]} 8. d3 {[%clk
0:02:53.1]} 8... Bd8 {[%clk 0:02:56.3]} 9. a3 {[%clk 0:02:51.8]} 9... Nge7
{[%clk 0:02:55]} 10. Rb1 {[%clk 0:02:49.4]} 10... a5 {[%clk 0:02:54.4]} 11. Nd5
{[%clk 0:02:46.5]} 11... O-O {[%clk 0:02:53.9]} 12. Bd2 {[%clk 0:02:41.8]} 12...
f5 {[%clk 0:02:47]} 13. b4 {[%clk 0:02:24.1]} 13... fxe4 {[%clk 0:02:26.7]} 14.
dxe4 {[%clk 0:02:22.1]} 14... axb4 {[%clk 0:02:26.4]} 15. axb4 {[%clk 0:02:22]}
15... Nxd5 {[%clk 0:02:25.9]} 16. cxd5 {[%clk 0:02:11.4]} 16... Nxb4 {[%clk
0:02:03.1]} 17. Bxb4 {[%clk 0:02:07.7]} 17... cxb4 {[%clk 0:02:04]} 18. Rxb4
{[%clk 0:02:07.7]} 18... Ra3 {[%clk 0:01:51.9]} 19. Nd2 {[%clk 0:01:54.7]} 19...
Ba5 {[%clk 0:01:37.9]} 20. Rb3 {[%clk 0:01:42.4]} 20... Ra2 {[%clk 0:01:03.7]}
21. Nc4 {[%clk 0:01:42.5]} 21... b5 {[%clk 0:01:03.3]} 22. Nxa5 {[%clk 0:01:37]}
22... Rxa5 {[%clk 0:01:04.2]} 23. Qd2 {[%clk 0:01:31]} 23... Ra4 {[%clk
0:01:04.2]} 24. f3 {[%clk 0:01:26.9]} 24... Rc8 {[%clk 0:01:01.5]} 25. Rfb1
{[%clk 0:01:25.1]} 25... Qa7+ {[%clk 0:00:59.4]} 26. Qf2 {[%clk 0:01:24.7]}
26... Qxf2+ {[%clk 0:00:51.7]} 27. Kxf2 {[%clk 0:01:24.6]} 27... Rc2+ {[%clk
0:00:52.4]} 28. Ke3 {[%clk 0:01:08.4]} 28... Rxg2 {[%clk 0:00:28.9]} 29. Rxb5
{[%clk 0:01:08.6]} 29... Rxh2 {[%clk 0:00:25.5]} 30. Rb8+ {[%clk 0:00:36.9]}
30... Kf7 {[%clk 0:00:25.2]} 31. R8b7+ {[%clk 0:00:33.7]} 31... Kg6 {[%clk
0:00:18.5]} 32. R7b6 {[%clk 0:00:34]} 32... Ra3+ {[%clk 0:00:14.2]} 33. R1b3
{[%clk 0:00:34.5]} 33... Rxb3+ {[%clk 0:00:13.8]} 34. Rxb3 {[%clk 0:00:35.2]}
34... Kf6 {[%clk 0:00:14.2]} 35. Rb6 {[%clk 0:00:34.7]} 35... h5 {[%clk
0:00:13.5]} 36. Rxd6+ {[%clk 0:00:34.6]} 36... Kf7 {[%clk 0:00:13.4]} 37. Re6
{[%clk 0:00:31.2]} 37... Ra2 {[%clk 0:00:12.8]} 38. Rxe5 {[%clk 0:00:30.1]}
38... g6 {[%clk 0:00:12.2]} 39. Rg5 {[%clk 0:00:21.2]} 39... Kf6 {[%clk
0:00:11.7]} 40. Rg1 {[%clk 0:00:20.3]} 40... Ra3+ {[%clk 0:00:11.8]} 41. Kf4
{[%clk 0:00:16]} 41... Rd3 {[%clk 0:00:12.1]} 42. e5+ {[%clk 0:00:15.1]} 42...
Kf7 {[%clk 0:00:12.6]} 43. d6 {[%clk 0:00:13.7]} 43... Rd2 {[%clk 0:00:13]} 44.
Ra1 {[%clk 0:00:11.9]} 44... Ke6 {[%clk 0:00:12.3]} 45. Re1 {[%clk 0:00:10.3]}
45... Rd4+ {[%clk 0:00:12.1]} 46. Kg5 {[%clk 0:00:10.2]} 46... Rd3 {[%clk
0:00:11.5]} 47. Kxg6 {[%clk 0:00:09.3]} 47... h4 {[%clk 0:00:09.8]} 48. Kg5
{[%clk 0:00:09]} 48... Rxf3 {[%clk 0:00:09.6]} 49. Kxh4 {[%clk 0:00:09]} 49...
Rf8 {[%clk 0:00:09.3]} 50. Kg4 {[%clk 0:00:08.8]} 50... Rf7 {[%clk 0:00:09.3]}
51. Re4 {[%clk 0:00:06.1]} 51... Rf8 {[%clk 0:00:09.6]} 52. Kg3 {[%clk
0:00:04.6]} 52... Rf7 {[%clk 0:00:09.4]} 53. Kg4 {[%clk 0:00:04.3]} 53... Rf8
{[%clk 0:00:09.9]} 54. Kg5 {[%clk 0:00:04.5]} 54... Rf1 {[%clk 0:00:09]} 55. Rd4
{[%clk 0:00:03.3]} 55... Rf7 {[%clk 0:00:08.1]} 56. d7 {[%clk 0:00:02.8]} 56...
Rg7+ {[%clk 0:00:08.4]} 57. Kh6 {[%clk 0:00:02.4]} 57... Rxd7 {[%clk 0:00:09.1]}
58. Rxd7 {[%clk 0:00:02.7]} 58... Kxd7 {[%clk 0:00:10]} 59. Kg6 {[%clk
0:00:02.6]} 59... Ke6 {[%clk 0:00:10.9]} 60. Kg7 {[%clk 0:00:02.9]} 60... Kxe5
{[%clk 0:00:11.8]} 1/2-1/2

[Event "Early-Titled-Tuesday-Blitz-April-02-2024"]
[Site "Chess.com"]
[Date "2024.04.02"]
[Round "1"]
[White "SlavenPastar"]
[Black "dodorox"]
[Result "1-0"]
[WhiteElo "2575"]
[BlackElo "2153"]
[TimeControl "180+1"]
[EndTime "8:08:16 PDT"]
[Termination "SlavenPastar won on time"]

1. Nf3 {[%clk 0:03:00.2]} 1... d5 {[%clk 0:02:56.9]} 2. g3 {[%clk 0:03:00.2]}
2... Nf6 {[%clk 0:02:56.9]} 3. Bg2 {[%clk 0:03:00.7]} 3... e6 {[%clk 0:02:57.6]}
4. c4 {[%clk 0:03:00.7]} 4... dxc4 {[%clk 0:02:58.5]} 5. Qa4+ {[%clk 0:02:58.6]}
5... Bd7 {[%clk 0:02:57.3]} 6. Qxc4 {[%clk 0:02:58.8]} 6... c5 {[%clk
0:02:57.9]} 7. Ne5 {[%clk 0:02:55.2]} 7... Nc6 {[%clk 0:02:55.6]} 8. Nxc6 {[%clk
0:02:51.7]} 8... Bxc6 {[%clk 0:02:55.4]} 9. Bxc6+ {[%clk 0:02:52.1]} 9... bxc6
{[%clk 0:02:56.3]} 10. O-O {[%clk 0:02:50.3]} 10... Be7 {[%clk 0:02:47.7]} 11.
d3 {[%clk 0:02:47.4]} 11... O-O {[%clk 0:02:42.9]} 12. Be3 {[%clk 0:02:46.2]}
12... Qd5 {[%clk 0:02:36.6]} 13. Nc3 {[%clk 0:02:46.1]} 13... Qxc4 {[%clk
0:02:29]} 14. dxc4 {[%clk 0:02:47]} 14... Ng4 {[%clk 0:02:21.1]} 15. Bf4 {[%clk
0:02:36.4]} 15... e5 {[%clk 0:02:05.9]} 16. Bd2 {[%clk 0:02:32.5]} 16... Rfd8
{[%clk 0:02:05.1]} 17. Rfd1 {[%clk 0:02:29.2]} 17... Nf6 {[%clk 0:01:58.1]} 18.
f3 {[%clk 0:02:27.5]} 18... Rd4 {[%clk 0:01:50]} 19. b3 {[%clk 0:02:26.1]} 19...
Rad8 {[%clk 0:01:49.7]} 20. Be3 {[%clk 0:02:26.1]} 20... Rxd1+ {[%clk
0:01:48.7]} 21. Rxd1 {[%clk 0:02:17.9]} 21... Rxd1+ {[%clk 0:01:48.7]} 22. Nxd1
{[%clk 0:02:18.8]} 22... Nd7 {[%clk 0:01:47.6]} 23. g4 {[%clk 0:02:16.3]} 23...
f6 {[%clk 0:01:46.8]} 24. Nc3 {[%clk 0:02:08.7]} 24... Kf7 {[%clk 0:01:46]} 25.
f4 {[%clk 0:02:06.4]} 25... exf4 {[%clk 0:01:35.9]} 26. Bxf4 {[%clk 0:02:07.3]}
26... Ke6 {[%clk 0:01:36]} 27. Kg2 {[%clk 0:02:04.5]} 27... Bd6 {[%clk
0:01:32.9]} 28. Be3 {[%clk 0:02:00]} 28... Be5 {[%clk 0:01:27]} 29. Na4 {[%clk
0:01:56.9]} 29... Bd4 {[%clk 0:01:26.8]} 30. Bf4 {[%clk 0:01:49.1]} 30... Be5
{[%clk 0:01:19.7]} 31. Bd2 {[%clk 0:01:40.2]} 31... Bd4 {[%clk 0:01:19]} 32. Kf3
{[%clk 0:01:32.9]} 32... Nb6 {[%clk 0:01:14]} 33. e3 {[%clk 0:01:09.6]} 33...
Be5 {[%clk 0:00:33]} 34. Nxc5+ {[%clk 0:01:09.2]} 34... Kd6 {[%clk 0:00:29]} 35.
Ne4+ {[%clk 0:01:07.2]} 35... Ke6 {[%clk 0:00:28.2]} 36. h3 {[%clk 0:01:07.4]}
36... Nd7 {[%clk 0:00:23.1]} 37. Bb4 {[%clk 0:01:04.7]} 37... Bc7 {[%clk
0:00:21]} 38. Bc3 {[%clk 0:00:56.5]} 38... Be5 {[%clk 0:00:18.6]} 39. Bd4 {[%clk
0:00:51.2]} 39... a6 {[%clk 0:00:14.2]} 40. h4 {[%clk 0:00:42.2]} 40... Bc7
{[%clk 0:00:12.6]} 41. h5 {[%clk 0:00:34.1]} 41... Be5 {[%clk 0:00:13]} 42. b4
{[%clk 0:00:20.6]} 42... h6 {[%clk 0:00:12]} 43. Nc5+ {[%clk 0:00:16.3]} 43...
Nxc5 {[%clk 0:00:11.4]} 44. Bxc5 {[%clk 0:00:17.2]} 44... f5 {[%clk 0:00:06.3]}
45. a4 {[%clk 0:00:15.9]} 45... fxg4+ {[%clk 0:00:05.8]} 46. Kxg4 {[%clk
0:00:16.8]} 46... Bc3 {[%clk 0:00:05.1]} 47. Kf4 {[%clk 0:00:16.2]} 47... Kf6
{[%clk 0:00:04]} 48. Bd4+ {[%clk 0:00:15.8]} 48... Bxd4 {[%clk 0:00:04.6]} 49.
exd4 {[%clk 0:00:16.7]} 49... Ke6 {[%clk 0:00:05]} 50. Ke4 {[%clk 0:00:15.9]}
50... Kf6 {[%clk 0:00:03.9]} 51. d5 {[%clk 0:00:15.7]} 51... cxd5+ {[%clk
0:00:03.4]} 52. Kxd5 {[%clk 0:00:16.3]} 52... g5 {[%clk 0:00:03.3]} 53. hxg6
{[%clk 0:00:16.2]} 53... h5 {[%clk 0:00:03.8]} 54. Ke4 {[%clk 0:00:15.4]} 54...
h4 {[%clk 0:00:04.3]} 55. b5 {[%clk 0:00:15]} 55... h3 {[%clk 0:00:03.5]} 56.
Kf3 {[%clk 0:00:14.9]} 56... axb5 {[%clk 0:00:02]} 57. cxb5 {[%clk 0:00:14.4]}
57... Kxg6 {[%clk 0:00:01.7]} 58. b6 {[%clk 0:00:13.4]} 58... h2 {[%clk
0:00:02.1]} 59. Kg2 {[%clk 0:00:13.3]} 1-0

[Event "Early-Titled-Tuesday-Blitz-April-02-2024"]
[Site "Chess.com"]
[Date "2024.04.02"]
[Round "1"]
[White "shirovin"]
[Black "junhaopro"]
[Result "0-1"]
[WhiteElo "2040"]
[BlackElo "2563"]
[TimeControl "180+1"]
[EndTime "8:08:19 PDT"]
[Termination "junhaopro won on time"]

1. e4 {[%clk 0:02:58.5]} 1... c5 {[%clk 0:02:59.6]} 2. Nf3 {[%clk 0:02:57.3]}
2... e6 {[%clk 0:02:59.2]} 3. d4 {[%clk 0:02:56.3]} 3... cxd4 {[%clk 0:02:59.4]}
4. Nxd4 {[%clk 0:02:57]} 4... Nc6 {[%clk 0:02:58.3]} 5. c4 {[%clk 0:02:52.7]}
5... Nf6 {[%clk 0:02:54.7]} 6. Nc3 {[%clk 0:02:51.4]} 6... Bb4 {[%clk
0:02:54.6]} 7. Nxc6 {[%clk 0:02:50.6]} 7... bxc6 {[%clk 0:02:55.4]} 8. Bd3
{[%clk 0:02:50.5]} 8... e5 {[%clk 0:02:54.2]} 9. O-O {[%clk 0:02:48.2]} 9... O-O
{[%clk 0:02:53.2]} 10. Bg5 {[%clk 0:02:46.2]} 10... Be7 {[%clk 0:02:46.7]} 11.
f4 {[%clk 0:02:34.4]} 11... exf4 {[%clk 0:02:42.6]} 12. Bxf4 {[%clk 0:02:31.8]}
12... d6 {[%clk 0:02:39.6]} 13. Qe1 {[%clk 0:02:01.7]} 13... Ng4 {[%clk
0:02:16.4]} 14. h3 {[%clk 0:01:46.4]} 14... Ne5 {[%clk 0:02:15.5]} 15. Be2
{[%clk 0:01:45.2]} 15... Be6 {[%clk 0:02:12.5]} 16. b3 {[%clk 0:01:40]} 16...
Qb6+ {[%clk 0:01:58.8]} 17. Kh1 {[%clk 0:01:33.8]} 17... Rad8 {[%clk 0:01:44.7]}
18. Rd1 {[%clk 0:01:32.6]} 18... Bf6 {[%clk 0:01:34.9]} 19. Qg3 {[%clk
0:01:23.3]} 19... Kh8 {[%clk 0:01:33.5]} 20. Be3 {[%clk 0:01:14.3]} 20... Qb8
{[%clk 0:01:29.8]} 21. Rxf6 {[%clk 0:01:03.5]} 21... gxf6 {[%clk 0:01:30.7]} 22.
Qh4 {[%clk 0:01:02.5]} 22... Nd7 {[%clk 0:01:19.8]} 23. Bf4 {[%clk 0:00:53.8]}
23... Qb4 {[%clk 0:01:08.7]} 24. Rd3 {[%clk 0:00:39.6]} 24... d5 {[%clk
0:00:53.9]} 25. cxd5 {[%clk 0:00:33]} 25... cxd5 {[%clk 0:00:53.7]} 26. exd5
{[%clk 0:00:27.1]} 26... Bf5 {[%clk 0:00:50.9]} 27. Rg3 {[%clk 0:00:25.9]} 27...
Rg8 {[%clk 0:00:42.9]} 28. Bc4 {[%clk 0:00:20.4]} 28... Rxg3 {[%clk 0:00:40.5]}
29. Qxg3 {[%clk 0:00:19.2]} 29... Rg8 {[%clk 0:00:40.4]} 30. Qe3 {[%clk
0:00:16.3]} 30... Nb6 {[%clk 0:00:37]} 31. d6 {[%clk 0:00:14.8]} 31... Nxc4
{[%clk 0:00:32.7]} 32. bxc4 {[%clk 0:00:14.3]} 32... Qxc4 {[%clk 0:00:30.8]} 33.
Ne2 {[%clk 0:00:11.5]} 33... Qc6 {[%clk 0:00:26.3]} 34. Ng3 {[%clk 0:00:11.1]}
34... Be6 {[%clk 0:00:25]} 35. Qd4 {[%clk 0:00:09.4]} 35... Rg6 {[%clk
0:00:24.3]} 36. h4 {[%clk 0:00:08.3]} 36... Kg8 {[%clk 0:00:14.5]} 37. h5 {[%clk
0:00:07.7]} 37... Rg4 {[%clk 0:00:14.7]} 38. Ne4 {[%clk 0:00:06.5]} 38... Rxf4
{[%clk 0:00:12.1]} 39. Nxf6+ {[%clk 0:00:06]} 39... Rxf6 {[%clk 0:00:12.3]} 40.
Qxf6 {[%clk 0:00:06]} 40... Qxd6 {[%clk 0:00:09.9]} 41. Qg5+ {[%clk 0:00:05.6]}
41... Kf8 {[%clk 0:00:09.7]} 42. Qf6 {[%clk 0:00:05.8]} 42... Qd1+ {[%clk
0:00:08.9]} 43. Kh2 {[%clk 0:00:05.6]} 43... Qxh5+ {[%clk 0:00:09.6]} 44. Kg1
{[%clk 0:00:05]} 44... Qg6 {[%clk 0:00:10.2]} 45. Qd8+ {[%clk 0:00:03.9]} 45...
Kg7 {[%clk 0:00:10.7]} 46. Qd4+ {[%clk 0:00:04.1]} 46... Qf6 {[%clk 0:00:11.3]}
47. Qe3 {[%clk 0:00:02.7]} 47... Qa1+ {[%clk 0:00:11.2]} 48. Kh2 {[%clk
0:00:02.3]} 48... Qf6 {[%clk 0:00:10.6]} 49. Qg3+ {[%clk 0:00:02.9]} 49... Qg6
{[%clk 0:00:10.2]} 50. Qf4 {[%clk 0:00:01.9]} 50... Bxa2 {[%clk 0:00:09.5]} 51.
Qe5+ {[%clk 0:00:02]} 51... Qf6 {[%clk 0:00:09.2]} 52. Qg3+ {[%clk 0:00:01.5]}
52... Kf8 {[%clk 0:00:07.8]} 53. Qa3+ {[%clk 0:00:01.8]} 53... Qe7 {[%clk
0:00:06.7]} 54. Qxa2 {[%clk 0:00:02.2]} 54... Qd6+ {[%clk 0:00:06.5]} 55. Kh3
{[%clk 0:00:01.6]} 55... Qd3+ {[%clk 0:00:06.2]} 56. g3 {[%clk 0:00:01.7]} 56...
Qf5+ {[%clk 0:00:06]} 57. Kh2 {[%clk 0:00:01]} 57... a5 {[%clk 0:00:06.5]} 0-1

[Event "Early-Titled-Tuesday-Blitz-April-02-2024"]
[Site "Chess.com"]
[Date "2024.04.02"]
[Round "1"]
[White "BashiqChess"]
[Black "Matibar"]
[Result "1-0"]
[WhiteElo "2458"]
[BlackElo "2733"]
[TimeControl "180+1"]
[EndTime "8:08:21 PDT"]
[Termination "BashiqChess won by resignation"]

1. Nf3 {[%clk 0:02:54.4]} 1... Nf6 {[%clk 0:02:56.1]} 2. b3 {[%clk 0:02:54.4]}
2... g6 {[%clk 0:02:46.3]} 3. Bb2 {[%clk 0:02:54.2]} 3... Bg7 {[%clk 0:02:46.5]}
4. g3 {[%clk 0:02:54.7]} 4... O-O {[%clk 0:02:45.5]} 5. Bg2 {[%clk 0:02:55]}
5... c5 {[%clk 0:02:44.7]} 6. c4 {[%clk 0:02:54.3]} 6... Nc6 {[%clk 0:02:43.8]}
7. O-O {[%clk 0:02:54.3]} 7... d5 {[%clk 0:02:36.9]} 8. cxd5 {[%clk 0:02:43.1]}
8... Nxd5 {[%clk 0:02:27]} 9. Bxg7 {[%clk 0:02:44]} 9... Kxg7 {[%clk 0:02:27.3]}
10. d4 {[%clk 0:02:44.1]} 10... cxd4 {[%clk 0:02:01.7]} 11. Nxd4 {[%clk
0:02:45]} 11... Nxd4 {[%clk 0:01:54.3]} 12. Qxd4+ {[%clk 0:02:45.9]} 12... Nf6
{[%clk 0:01:54.2]} 13. Qe5 {[%clk 0:02:45.3]} 13... Qb6 {[%clk 0:01:34.8]} 14.
Nc3 {[%clk 0:02:37.9]} 14... Be6 {[%clk 0:01:33.5]} 15. Rac1 {[%clk 0:02:18.4]}
15... Rad8 {[%clk 0:01:18.7]} 16. Na4 {[%clk 0:02:14.4]} 16... Qb4 {[%clk
0:01:18.4]} 17. Nc5 {[%clk 0:02:07.6]} 17... Bd5 {[%clk 0:01:17.4]} 18. Qxe7
{[%clk 0:01:57.7]} 18... Qb6 {[%clk 0:00:54.4]} 19. Bxd5 {[%clk 0:01:23.7]}
19... Rxd5 {[%clk 0:00:53.6]} 20. Qxb7 {[%clk 0:01:02.5]} 20... Qxb7 {[%clk
0:00:52.7]} 21. Nxb7 {[%clk 0:01:03.4]} 21... Rd2 {[%clk 0:00:53.1]} 22. Rfe1
{[%clk 0:00:42.6]} 22... Rb8 {[%clk 0:00:42.2]} 23. Rc7 {[%clk 0:00:38.8]} 23...
Ne8 {[%clk 0:00:41.9]} 24. Rec1 {[%clk 0:00:17.9]} 24... Nxc7 {[%clk 0:00:40.8]}
25. Rxc7 {[%clk 0:00:18.8]} 25... Rxa2 {[%clk 0:00:35.2]} 26. Nd6 {[%clk
0:00:18.6]} 26... Rf8 {[%clk 0:00:35.1]} 27. e3 {[%clk 0:00:18.6]} 27... a5
{[%clk 0:00:33.6]} 28. Ra7 {[%clk 0:00:18.3]} 28... Rb2 {[%clk 0:00:27.1]} 29.
Rxa5 {[%clk 0:00:12.5]} 29... Rxb3 {[%clk 0:00:24.6]} 30. Ra7 {[%clk 0:00:13]}
30... Rd3 {[%clk 0:00:24.3]} 31. Nc4 {[%clk 0:00:11.7]} 31... Rd5 {[%clk
0:00:23.9]} 32. e4 {[%clk 0:00:11.9]} 32... Rd4 {[%clk 0:00:22.6]} 33. Ne3
{[%clk 0:00:09.4]} 33... Rxe4 {[%clk 0:00:22.6]} 34. Kg2 {[%clk 0:00:09.8]}
34... h5 {[%clk 0:00:21.6]} 35. Kf3 {[%clk 0:00:10.3]} 35... Re6 {[%clk
0:00:21.6]} 36. Nd5 {[%clk 0:00:10.6]} 36... Rd8 {[%clk 0:00:21]} 37. Nf4 {[%clk
0:00:10.3]} 37... Rc6 {[%clk 0:00:21.1]} 38. Kg2 {[%clk 0:00:10.4]} 38... Rc2
{[%clk 0:00:20.1]} 39. Ne6+ {[%clk 0:00:10.6]} 39... Kf6 {[%clk 0:00:19.1]} 40.
Nxd8 {[%clk 0:00:11.5]} 40... Rd2 {[%clk 0:00:16.6]} 41. Nxf7 {[%clk 0:00:11.4]}
41... g5 {[%clk 0:00:16.3]} 42. Nxg5 {[%clk 0:00:10.2]} 42... Kxg5 {[%clk
0:00:16.3]} 43. h4+ {[%clk 0:00:10.2]} 43... Kg6 {[%clk 0:00:15.8]} 44. Ra6+
{[%clk 0:00:10.3]} 44... Kg7 {[%clk 0:00:16.2]} 45. Kf3 {[%clk 0:00:10.4]} 45...
Rb2 {[%clk 0:00:15.6]} 46. Ra5 {[%clk 0:00:08.5]} 46... Kg6 {[%clk 0:00:15.8]}
47. Ra6+ {[%clk 0:00:09]} 47... Kg7 {[%clk 0:00:15.9]} 48. Rc6 {[%clk
0:00:09.4]} 48... Rb4 {[%clk 0:00:14.8]} 49. Re6 {[%clk 0:00:07.8]} 49... Ra4
{[%clk 0:00:14.2]} 50. Re4 {[%clk 0:00:08.3]} 50... Ra2 {[%clk 0:00:14.6]} 51.
Re2 {[%clk 0:00:07.1]} 51... Ra4 {[%clk 0:00:14.7]} 52. Re3 {[%clk 0:00:07.7]}
52... Kg6 {[%clk 0:00:13.9]} 53. Re4 {[%clk 0:00:07.8]} 53... Ra2 {[%clk
0:00:13.3]} 54. Ke3 {[%clk 0:00:08.5]} 54... Ra3+ {[%clk 0:00:13.3]} 55. Kf4
{[%clk 0:00:08.7]} 55... Ra8 {[%clk 0:00:13.4]} 56. f3 {[%clk 0:00:08.9]} 56...
Ra5 {[%clk 0:00:13.5]} 57. Rc4 {[%clk 0:00:08.9]} 57... Rf5+ {[%clk 0:00:12.8]}
58. Ke4 {[%clk 0:00:09.1]} 58... Ra5 {[%clk 0:00:13.7]} 59. Rc6+ {[%clk
0:00:09.4]} 59... Kg7 {[%clk 0:00:14.1]} 60. Kf4 {[%clk 0:00:09.7]} 60... Kh7
{[%clk 0:00:13.6]} 61. Rf6 {[%clk 0:00:09.8]} 61... Ra3 {[%clk 0:00:10.6]} 62.
Kg5 {[%clk 0:00:09.4]} 1-0

[Event "Early-Titled-Tuesday-Blitz-April-02-2024"]
[Site "Chess.com"]
[Date "2024.04.02"]
[Round "1"]
[White "ahkashefi2800"]
[Black "NowInChess"]
[Result "1-0"]
[WhiteElo "2612"]
[BlackElo "2267"]
[TimeControl "180+1"]
[EndTime "8:08:21 PDT"]
[Termination "ahkashefi2800 won on time"]

1. d4 {[%clk 0:01:44.5]} 1... Nf6 {[%clk 0:02:59]} 2. Nf3 {[%clk 0:01:43.2]}
2... g6 {[%clk 0:02:59.1]} 3. g3 {[%clk 0:01:43.4]} 3... Bg7 {[%clk 0:02:59.2]}
4. Bg2 {[%clk 0:01:44.3]} 4... O-O {[%clk 0:02:59.6]} 5. O-O {[%clk 0:01:45.2]}
5... d6 {[%clk 0:02:57.1]} 6. b3 {[%clk 0:01:39.7]} 6... Ne4 {[%clk 0:02:54.4]}
7. Bb2 {[%clk 0:01:38.4]} 7... c5 {[%clk 0:02:53.1]} 8. Nbd2 {[%clk 0:01:36.2]}
8... Bf5 {[%clk 0:02:46.1]} 9. c4 {[%clk 0:01:34.6]} 9... Nc6 {[%clk 0:02:35.7]}
10. Nxe4 {[%clk 0:01:27]} 10... Bxe4 {[%clk 0:02:34.8]} 11. Qd2 {[%clk
0:01:27.9]} 11... cxd4 {[%clk 0:02:16.8]} 12. Nxd4 {[%clk 0:01:26.5]} 12... Bxg2
{[%clk 0:02:17.7]} 13. Kxg2 {[%clk 0:01:25.7]} 13... Qb6 {[%clk 0:02:15.9]} 14.
Nf3 {[%clk 0:01:21]} 14... Bxb2 {[%clk 0:02:13.3]} 15. Qxb2 {[%clk 0:01:21.9]}
15... Rac8 {[%clk 0:02:01]} 16. h4 {[%clk 0:01:21.3]} 16... h5 {[%clk
0:01:50.3]} 17. Rfd1 {[%clk 0:01:19.2]} 17... Rfd8 {[%clk 0:01:42.1]} 18. Rd2
{[%clk 0:01:15.1]} 18... Na5 {[%clk 0:01:32.4]} 19. Rad1 {[%clk 0:01:12]} 19...
Qb4 {[%clk 0:01:26.8]} 20. Qd4 {[%clk 0:01:09.3]} 20... Nc6 {[%clk 0:01:22.6]}
21. Qf4 {[%clk 0:01:09.4]} 21... Qc5 {[%clk 0:01:10.9]} 22. Rd5 {[%clk
0:01:06.1]} 22... Qa3 {[%clk 0:01:09.8]} 23. R1d2 {[%clk 0:01:04.7]} 23... Qc1
{[%clk 0:01:07.6]} 24. Ng5 {[%clk 0:01:02.8]} 24... Rf8 {[%clk 0:01:01.4]} 25.
Qe4 {[%clk 0:00:51.7]} 25... Nb4 {[%clk 0:00:47.6]} 26. R5d4 {[%clk 0:00:45.5]}
26... Nc6 {[%clk 0:00:46.8]} 27. R4d3 {[%clk 0:00:38]} 27... Nb4 {[%clk
0:00:46.7]} 28. Rd4 {[%clk 0:00:33.1]} 28... Nc6 {[%clk 0:00:46.5]} 29. Rd1
{[%clk 0:00:33]} 29... Qb2 {[%clk 0:00:32.8]} 30. R4d2 {[%clk 0:00:31.1]} 30...
Qe5 {[%clk 0:00:26.1]} 31. Qf3 {[%clk 0:00:30]} 31... a6 {[%clk 0:00:17.1]} 32.
Nh3 {[%clk 0:00:29.7]} 32... Qg7 {[%clk 0:00:15.7]} 33. Nf4 {[%clk 0:00:28.3]}
33... Ne5 {[%clk 0:00:15.6]} 34. Qxb7 {[%clk 0:00:28.7]} 34... Ng4 {[%clk
0:00:10.9]} 35. Qxe7 {[%clk 0:00:28.1]} 35... Qe5 {[%clk 0:00:05.6]} 36. Qxe5
{[%clk 0:00:27.5]} 36... dxe5 {[%clk 0:00:05.2]} 37. Nd5 {[%clk 0:00:28.4]}
37... e4 {[%clk 0:00:04.5]} 38. Nf6+ {[%clk 0:00:27.9]} 38... Nxf6 {[%clk
0:00:03.9]} 39. Rd6 {[%clk 0:00:28.7]} 39... Kg7 {[%clk 0:00:03.5]} 40. Rxa6
{[%clk 0:00:29]} 40... Rfe8 {[%clk 0:00:03.4]} 41. Rdd6 {[%clk 0:00:29.1]} 41...
Ng4 {[%clk 0:00:02.7]} 42. e3 {[%clk 0:00:29.2]} 42... Ne5 {[%clk 0:00:02.3]}
43. a4 {[%clk 0:00:25.4]} 43... Rcd8 {[%clk 0:00:02.5]} 44. a5 {[%clk
0:00:23.5]} 44... Rxd6 {[%clk 0:00:02.3]} 45. Rxd6 {[%clk 0:00:24]} 45... Rb8
{[%clk 0:00:02.8]} 46. Rb6 {[%clk 0:00:23.1]} 46... Rxb6 {[%clk 0:00:01.6]} 47.
axb6 {[%clk 0:00:24]} 47... Nc6 {[%clk 0:00:01.7]} 48. b4 {[%clk 0:00:24]} 48...
Kf6 {[%clk 0:00:01.5]} 49. b5 {[%clk 0:00:23.5]} 49... Na5 {[%clk 0:00:01.7]}
50. c5 {[%clk 0:00:23.1]} 50... Ke6 {[%clk 0:00:01.7]} 51. c6 {[%clk 0:00:17.9]}
51... Kd6 {[%clk 0:00:01.8]} 52. g4 {[%clk 0:00:10.7]} 52... Nxc6 {[%clk
0:00:01.5]} 53. bxc6 {[%clk 0:00:10.7]} 53... Kxc6 {[%clk 0:00:01.9]} 54. gxh5
{[%clk 0:00:10.6]} 54... gxh5 {[%clk 0:00:02.8]} 55. Kg3 {[%clk 0:00:10.5]}
55... Kxb6 {[%clk 0:00:03.4]} 56. Kf4 {[%clk 0:00:11.4]} 56... Kc5 {[%clk
0:00:04.1]} 57. Kxe4 {[%clk 0:00:11.9]} 57... Kd6 {[%clk 0:00:04.8]} 58. Kf5
{[%clk 0:00:11.8]} 1-0